fUST/lending_fUST_20250719
["ID","MTS","AMOUNT","RATE_DAILY","PERIOD"]
[373125837,1752869447240,-460.0,0.00019256,2]
[373125838,1752869447249,-460.0,0.00019256,2]
[373125839,1752869447258,-460.0,0.00019256,2]
[373125840,1752869447267,-311.93,0.00019256,2]
[373125841,1752869447276,-331.459095,0.00019256,2]
[373125842,1752869447285,-331.459095,0.00019256,2]
[373125843,1752869447294,-151.0,0.00019256,2]
[373125844,1752869447307,-460.0,0.00019256,2]
[373125845,1752869447316,-460.0,0.00019256,2]
[373125846,1752869447325,-460.0,0.00019256,2]
[373125847,1752869447334,-1735.47,0.00019257,2]
[373125848,1752869447344,-627.3,0.00019257,2]
[373125849,1752869447353,-1378.36,0.00019257,2]
[373125850,1752869447362,-460.0,0.00019257,2]
[373125851,1752869447371,-1716.56,0.00019258,2]
[373125852,1752869447380,-839.79,0.00019258,2]
[373125853,1752869447389,-151.0,0.00019258,2]
[373125854,1752869447398,-151.209155,0.00019259,2]
[373125855,1752869447407,-360.0,0.0001928,2]
[373125856,1752869447416,-151.0,0.000193,2]
[373125857,1752869447426,-160.994315,0.00019329,2]
[373125858,1752869447435,-8157.33118936,0.00019329,2]
[373125859,1752869447449,-1778.03425977,0.00019383,2]
[373125860,1752869447458,-1000.0,0.00019521,2]
[373125861,1752869447467,-151.0,0.00019521,2]
[373125862,1752869447477,-151.0,0.00019521,2]
[373125863,1752869447488,-151.470043,0.00019521,2]
[373125864,1752869447497,-1077.82,0.00019526,2]
[373125865,1752869447506,-1732.64,0.00019527,2]
[373125866,1752869447516,-460.0,0.00019527,2]
[373125867,1752869447525,-227.24,0.00019527,2]
[373125868,1752869447535,-1356.51,0.00019527,2]
[373125869,1752869447544,-1084.06,0.00019527,2]
[373125870,1752869447555,-460.0,0.00019527,2]
[373125871,1752869447564,-460.0,0.00019527,2]
[373125872,1752869447573,-460.0,0.00019527,2]
[373125873,1752869447581,-515.49977529,0.00019528,2]
[373125874,1752869447590,-2691.19,0.00019528,2]
[373125875,1752869447599,-460.0,0.00019528,2]
[373125876,1752869447609,-460.0,0.00019528,2]
[373125877,1752869447618,-525.3,0.00019528,2]
[373125878,1752869447627,-460.0,0.00019528,2]
[373125879,1752869447636,-460.0,0.00019528,2]
[373125880,1752869447645,-1334.22,0.00019528,2]
[373125881,1752869447654,-630.07,0.00019528,2]
[373125882,1752869447663,-460.0,0.00019528,2]
[373125883,1752869447672,-460.0,0.00019528,2]
[373125884,1752869447681,-151.0,0.00019529,2]
[373125885,1752869447690,-151.0,0.00019529,2]
[373125886,1752869447699,-151.0,0.00019529,2]
[373125887,1752869447708,-151.0,0.00019529,2]
[373125888,1752869447717,-169.766815,0.00019529,2]
[373125889,1752869447726,-169.766815,0.00019529,2]
[373125890,1752869447735,-504.3,0.00019529,2]
[373125891,1752869447744,-804.62,0.00019529,2]
[373125892,1752869447753,-460.0,0.00019529,2]
[373125893,1752869447762,-265.80337298,0.00019529,2]
[373125894,1752869447771,-460.0,0.00019529,2]
[373125895,1752869447780,-460.0,0.0001953,2]
[373125897,1752869447790,-460.0,0.0001953,2]
[373125899,1752869447801,-460.0,0.0001953,2]
[373125901,1752869447811,-151.0,0.0001953,2]
[373125902,1752869447820,-151.0,0.0001953,2]
[373125903,1752869447829,-151.0,0.0001953,2]
[373125905,1752869447838,-151.0,0.0001953,2]
[373125907,1752869447847,-460.0,0.0001953,2]
[373125909,1752869447856,-460.0,0.0001953,2]
[373125911,1752869447866,-151.0,0.0001953,2]
[373125913,1752869447875,-510.79164,0.0001953,2]
[373125915,1752869447884,-510.79164,0.0001953,2]
[373125917,1752869447893,-151.0,0.0001953,2]
[373125919,1752869447903,-1735.47,0.00019531,2]
[373125921,1752869447913,-627.3,0.00019531,2]
[373125923,1752869447922,-1378.36,0.00019531,2]
[373125925,1752869447931,-460.0,0.00019531,2]
[373125927,1752869447941,-1716.56,0.00019532,2]
[373125928,1752869447950,-839.79,0.00019532,2]
[373125929,1752869447959,-151.0,0.00019533,2]
[373125930,1752869447969,-503.93358597,0.00019604,2]
[373125931,1752869447979,-500.0,0.00019604,2]
[373125932,1752869447988,-500.0,0.00019604,2]
[373125933,1752869447997,-553.09417526,0.00019604,2]
[373125934,1752869448006,-500.0,0.00019604,2]
[373125935,1752869448016,-500.0,0.00019604,2]
[373125936,1752869448025,-500.0,0.00019604,2]
[373125937,1752869448034,-683.87180556,0.00019605,2]
[373125938,1752869448044,-587.0,0.00019611,2]
[373125939,1752869448057,-217.17818657,0.00019616,2]
[373125940,1752869448067,-217.07464614,0.00019619,2]
[373125941,1752869448076,-207.4,0.00019619,2]
[373125942,1752869448086,-151.0,0.00019619,2]
[373125943,1752869448094,-151.0,0.00019619,2]
[373125944,1752869448103,-283.57159003,0.00019619,2]
[373125945,1752869448113,-151.0,0.00019619,2]
[373125946,1752869448123,-151.0,0.00019619,2]
[373125947,1752869448132,-151.0,0.00019619,2]
[373125948,1752869448141,-151.0,0.00019619,2]
[373125949,1752869448150,-151.0,0.00019619,2]
[373125950,1752869448160,-3801.642,0.00019619,2]
[373125951,1752869448169,-151.0,0.00019619,2]
[373125952,1752869448178,-151.0,0.00019619,2]
[373125953,1752869448187,-151.0,0.00019619,2]
[373125954,1752869448197,-151.0,0.00019619,2]
[373125955,1752869448206,-151.0,0.00019619,2]
[373125956,1752869448308,-151.0,0.00019619,2]
[373125957,1752869448318,-151.0,0.00019619,2]
[373125958,1752869448328,-151.0,0.00019619,2]
[373125959,1752869448338,-25000.0,0.00019619,2]
[373125960,1752869448348,-151.0,0.00019619,2]
[373125961,1752869448358,-151.0,0.00019619,2]
[373125962,1752869448367,-151.0,0.00019619,2]
[373125963,1752869448376,-151.0,0.00019619,2]
[373125964,1752869448385,-151.0,0.00019619,2]
[373125965,1752869448394,-284.214689,0.00019619,2]
[373125966,1752869448403,-151.0,0.00019619,2]
[373125967,1752869448413,-151.0,0.00019619,2]
[373125968,1752869448422,-151.0,0.00019619,2]
[373125969,1752869448432,-151.0,0.00019619,2]
[373125970,1752869448444,-151.0,0.00019619,2]
[373125971,1752869448454,-213.561334,0.00019619,2]
[373125972,1752869448463,-213.561334,0.00019619,2]
[373125973,1752869448473,-151.0,0.00019619,2]
[373125974,1752869448482,-151.0,0.00019619,2]
[373125975,1752869448492,-151.0,0.00019619,2]
[373125976,1752869448501,-500.0,0.00019633,2]
[373125977,1752869448511,-3048.14937814,0.00019674,2]
[373125978,1752869448521,-1778.03425977,0.00019693,2]
[373125979,1752869448530,-500.0,0.0001972,2]
[373125980,1752869448540,-317.46934266,0.00019745,2]
[373125981,1752869448553,-500.0,0.00019745,2]
[373125982,1752869448563,-500.0,0.00019745,2]
[373125983,1752869448572,-203.96689228,0.00019745,2]
[373125984,1752869448582,-500.0,0.00019745,2]
[373125985,1752869448591,-500.0,0.00019745,2]
[373125986,1752869448600,-500.0,0.00019745,2]
[373125987,1752869448611,-500.0,0.00019745,2]
[373125988,1752869448620,-644.0334221,0.00019745,2]
[373125989,1752869448629,-500.0,0.00019745,2]
[373125990,1752869448639,-500.0,0.00019745,2]
[373125991,1752869448649,-500.0,0.00019745,2]
[373125992,1752869448659,-500.0,0.00019745,2]
[373125993,1752869448668,-500.0,0.00019745,2]
[373125994,1752869448678,-500.0,0.00019745,2]
[373125995,1752869448688,-500.0,0.00019745,2]
[373125996,1752869448697,-617.91842792,0.00019745,2]
[373125997,1752869448707,-500.0,0.00019745,2]
[373125998,1752869448716,-500.0,0.00019745,2]
[373125999,1752869448725,-500.0,0.00019745,2]
[373126000,1752869448734,-223.48338086,0.00019745,2]
[373126001,1752869448744,-500.0,0.00019747,2]
[373126002,1752869448753,-500.0,0.00019747,2]
[373126003,1752869448763,-500.0,0.0001979,2]
[373126004,1752869448772,-151.0,0.000198,2]
[373126005,1752869448782,-1077.82,0.000198,2]
[373126006,1752869448791,-1732.64,0.00019801,2]
[373126007,1752869448803,-460.0,0.00019801,2]
[373126008,1752869448813,-1356.51,0.00019801,2]
[373126009,1752869448823,-1084.06,0.00019801,2]
[373126010,1752869448832,-460.0,0.00019801,2]
[373126011,1752869448842,-217.3,0.00019801,2]
[373126012,1752869448851,-460.0,0.00019801,2]
[373126013,1752869448861,-2691.19,0.00019802,2]
[373126014,1752869448871,-460.0,0.00019802,2]
[373126015,1752869448880,-460.0,0.00019802,2]
[373126016,1752869448890,-525.3,0.00019802,2]
[373126017,1752869448900,-460.0,0.00019802,2]
[373126018,1752869448909,-460.0,0.00019802,2]
[373126019,1752869448918,-1334.22,0.00019802,2]
[373126020,1752869448928,-630.07,0.00019802,2]
[373126021,1752869448937,-460.0,0.00019802,2]
[373126022,1752869448947,-460.0,0.00019802,2]
[373126023,1752869448956,-151.0,0.00019803,2]
[373126024,1752869448966,-151.0,0.00019803,2]
[373126025,1752869448976,-504.3,0.00019803,2]
[373126026,1752869448985,-804.62,0.00019803,2]
[373126027,1752869448995,-460.0,0.00019803,2]
[373126028,1752869449005,-460.0,0.00019803,2]
[373126029,1752869449014,-151.0,0.00019804,2]
[373126030,1752869449024,-460.0,0.00019804,2]
[373126031,1752869449034,-460.0,0.00019804,2]
[373126032,1752869449043,-264.81,0.00019804,2]
[373126033,1752869449058,-460.0,0.00019804,2]
[373126034,1752869449068,-460.0,0.00019804,2]
[373126035,1752869449078,-1735.47,0.00019805,2]
[373126036,1752869449088,-627.3,0.00019805,2]
[373126037,1752869449098,-1378.36,0.00019805,2]
[373126038,1752869449107,-460.0,0.00019805,2]
[373126039,1752869449117,-1716.56,0.00019806,2]
[373126040,1752869449127,-839.79,0.00019806,2]
[373126041,1752869449137,-460.0,0.00019828,2]
[373126042,1752869449147,-500.0,0.00019863,2]
[373126043,1752869449156,-500.0,0.00019981,2]
[373126044,1752869449166,-5940.95805435,0.0002,7]
[373126045,1752869449176,-151.0,0.0002,2]
[373126046,1752869449186,-1778.03425977,0.00020003,2]
[373126047,1752869449196,-968.0,0.00020025,2]
[373126048,1752869449206,-407.0,0.00020028,2]
[373126049,1752869449215,-1500.0,0.00020068,2]
[373126050,1752869449225,-1077.82,0.00020074,2]
[373126051,1752869449235,-1732.64,0.00020075,2]
[373126052,1752869449245,-460.0,0.00020075,2]
[373126053,1752869449254,-1356.51,0.00020075,2]
[373126054,1752869449264,-1084.06,0.00020075,2]
[373126055,1752869449273,-460.0,0.00020075,2]
[373126056,1752869449283,-460.0,0.00020075,2]
[373126057,1752869449292,-2691.19,0.00020076,2]
[373126058,1752869449304,-604.25954728,0.00020076,2]
[373126059,1752869449313,-460.0,0.00020076,2]
[373126060,1752869449323,-525.3,0.00020076,2]
[373126061,1752869449334,-460.0,0.00020076,2]
[373126062,1752869449343,-460.0,0.00020076,2]
[373126063,1752869449352,-1010.06299916,0.00020076,2]
[373126064,1752869449452,-324.15700084,0.00020076,2]
[373126065,1752869449463,-406.82299836,0.00020076,2]
[373126066,1752869449480,-460.0,0.00018706,2]
[373126067,1752869449490,-223.24700164,0.00020076,2]
[373126068,1752869449499,-460.0,0.00020076,2]
[373126069,1752869449510,-460.0,0.00020076,2]
[373126070,1752869449522,-504.3,0.00020077,2]
[373126071,1752869449532,-804.62,0.00020077,2]
[373126072,1752869449542,-460.0,0.00020077,2]
[373126073,1752869449552,-151.0,0.00020077,2]
[373126074,1752869449561,-460.0,0.00020077,2]
[373126075,1752869449571,-460.0,0.00020078,2]
[373126076,1752869449580,-460.0,0.00020078,2]
[373126077,1752869449590,-374.52528848,0.00020078,2]
[373126078,1752869449846,-886.87,0.00016517,2]
[373126079,1752869449856,-886.87,0.00016791,2]
[373126080,1752869449866,-886.87,0.00017065,2]
[373126081,1752869449876,-438.26128963,0.000189,2]
[373126082,1752869449887,-460.0,0.0001898,2]
[373126083,1752869449897,-460.0,0.00019254,2]
[373126084,1752869449906,-460.0,0.00019528,2]
[373126085,1752869449916,-460.0,0.00019802,2]
[373126086,1752869449926,-460.0,0.00020076,2]
[373126087,1752869449938,-85.47471152,0.00020078,2]
[373126088,1752869449949,-460.0,0.00020078,2]
[373126089,1752869449959,-1282.69661319,0.00020079,2]
[373126090,1752869449971,-452.77338681,0.00020079,2]
[373126091,1752869449980,-627.3,0.00020079,2]
[373126092,1752869449989,-1378.36,0.00020079,2]
[373126093,1752869450000,-460.0,0.00020079,2]
[373126094,1752869450010,-1716.56,0.0002008,2]
[373126095,1752869450020,-839.79,0.0002008,2]
[373126096,1752869450030,-1752.0,0.00020081,2]
[373126097,1752869450041,-324.0,0.00020081,2]
[373126098,1752869450053,-324.0,0.00020081,2]
[373126099,1752869450063,-324.0,0.00020081,2]
[373126100,1752869450073,-208.745225,0.00020083,2]
[373126101,1752869450082,-208.745225,0.00020083,2]
[373126102,1752869450092,-224.39,0.00020091,2]
[373126103,1752869450102,-150.169,0.00020091,2]
[373126104,1752869450111,-216.543,0.00020091,2]
[373126105,1752869450121,-271.62,0.00020091,2]
[373126106,1752869450131,-250.0,0.00020091,2]
[373126107,1752869450141,-150.584,0.00020091,2]
[373126108,1752869450151,-259.894,0.00020091,2]
[373126109,1752869450161,-162.2,0.00020091,2]
[373126110,1752869450171,-652.046,0.00020091,2]
[373126111,1752869450181,-170.74364772,0.00020152,2]
[373126112,1752869450191,-1000.0,0.00020152,2]
[373126113,1752869450201,-2971.82971176,0.00020167,2]
[373126114,1752869450235,-886.87,0.00017339,2]
[373126115,1752869450244,-653.66771229,0.00017613,2]
[373126116,1752869450255,-233.20228771,0.00017613,2]
[373126117,1752869450265,-886.87,0.00017887,2]
[373126118,1752869450275,-22028.17028824,0.00020167,2]
[373126119,1752869450284,-151.0,0.00020167,2]
[373126120,1752869450293,-151.0,0.00020167,2]
[373126121,1752869450307,-151.0,0.00020167,2]
[373126122,1752869450317,-151.0,0.00020167,2]
[373126123,1752869450326,-169.766815,0.00020167,2]
[373126124,1752869450337,-169.766815,0.00020167,2]
[373126125,1752869450346,-1000.0,0.00020181,2]
[373126126,1752869450355,-392.238596,0.00020187,2]
[373126127,1752869450365,-308.68763552,0.00020228,2]
[373126128,1752869450374,-501.26367768,0.00020293,2]
[373126129,1752869450383,-1047.47244374,0.00020293,2]
[373126130,1752869450393,-500.0,0.00020293,2]
[373126131,1752869450402,-500.0,0.00020293,2]
[373126132,1752869450504,-500.85686421,0.00020293,2]
[373126133,1752869450516,-500.0,0.00020293,2]
[373126134,1752869450527,-501.33414174,0.00020293,2]
[373126135,1752869450537,-511.56659802,0.00020293,2]
[373126136,1752869450547,-1000.0,0.00020293,2]
[373126137,1752869450560,-1000.0,0.00020295,2]
[373126138,1752869450569,-1778.03425977,0.00020314,3]
[373126139,1752869450579,-151.0,0.00020314,2]
[373126140,1752869450589,-151.0,0.00020314,2]
[373126141,1752869450598,-151.0,0.00020314,2]
[373126142,1752869450609,-1077.82,0.00020348,2]
[373126143,1752869450618,-1139.56417938,0.00020349,2]
[373126152,1752870215408,353.014736,0.00013699,2]
[373126155,1752870308886,396.5,0.0001551,2]
[373126164,1752870575723,21259.0,0.000164,2]
[373126167,1752870623511,-213.58043899,0.00016408,2]
[373126168,1752870623540,-300.0,0.00016409,2]
[373126169,1752870623569,-300.0,0.00016409,2]
[373126170,1752870623597,-1200.0,0.00016409,2]
[373126171,1752870623692,-5278.22407113,0.0001641,2]
[373126172,1752870630058,-10000.0,0.0001641,2]
[373126174,1752870630215,-10000.0,0.0001641,2]
[373126175,1752870630383,-10000.0,0.0001641,2]
[373126176,1752870630576,-3919.95952501,0.0001641,2]
[373126264,1752870636668,-738.84,0.00016506,3]
[373126266,1752870636678,-581.41571428,0.00016508,2]
[373126268,1752870636690,-618.58428572,0.00016508,2]
[373126270,1752870636703,-282.75815685,0.00016508,2]
[373126272,1752870636713,-460.0,0.00016508,2]
[373126274,1752870636723,-460.0,0.00016508,2]
[373126276,1752870636732,-460.0,0.00016508,2]
[373126278,1752870636741,-460.0,0.00016508,2]
[373126280,1752870636750,-460.0,0.00016508,2]
[373126282,1752870636760,-923.65,0.00016508,2]
[373126284,1752870636769,-462.1507711,0.00016508,2]
[373126286,1752870636778,-460.0,0.00016508,2]
[373126287,1752870636790,-460.0,0.00016508,2]
[373126289,1752870636800,-500.0,0.00016508,2]
[373126291,1752870636809,-500.0,0.00016508,2]
[373126293,1752870636819,-500.0,0.00016508,2]
[373126295,1752870636829,-156.3750634,0.00016508,2]
[373126297,1752870636839,-500.0,0.00016508,2]
[373126299,1752870636848,-500.0,0.00016508,2]
[373126300,1752870636858,-500.0,0.00016508,2]
[373126303,1752870636869,-500.0,0.00016508,2]
[373126305,1752870636879,-623.38030469,0.00016508,2]
[373126307,1752870636891,-500.0,0.00016508,2]
[373126308,1752870636900,-500.0,0.00016508,2]
[373126310,1752870636909,-500.0,0.00016508,2]
[373126312,1752870636918,-500.0,0.00016508,2]
[373126314,1752870636927,-393.38251068,0.00016508,2]
[373126315,1752870636937,-500.0,0.00016508,2]
[373126316,1752870636947,-330.48528563,0.00016508,2]
[373126317,1752870636957,-500.0,0.00016508,2]
[373126318,1752870636967,-500.0,0.00016508,2]
[373126319,1752870636976,-500.0,0.00016508,2]
[373126320,1752870636985,-500.0,0.00016508,2]
[373126321,1752870636995,-500.0,0.00016508,2]
[373126322,1752870637004,-500.0,0.00016508,2]
[373126323,1752870637014,-500.0,0.00016508,2]
[373126324,1752870637023,-500.0,0.00016508,2]
[373126325,1752870637032,-238.65665917,0.00016508,2]
[373126326,1752870637042,-500.0,0.00016508,2]
[373126327,1752870637052,-500.0,0.00016508,2]
[373126328,1752870637063,-643.50003582,0.00016508,2]
[373126329,1752870637073,-500.0,0.00016508,2]
[373126330,1752870637087,-500.0,0.00016508,2]
[373126331,1752870637099,-460.0,0.00016509,2]
[373126332,1752870637113,-460.0,0.00016509,2]
[373126333,1752870637123,-460.0,0.00016509,2]
[373126334,1752870637132,-460.0,0.00016509,2]
[373126335,1752870637143,-460.0,0.00016509,2]
[373126336,1752870637153,-460.0,0.00016509,2]
[373126337,1752870637163,-460.0,0.00016509,2]
[373126338,1752870637172,-460.0,0.00016509,2]
[373126339,1752870637181,-460.0,0.00016509,2]
[373126340,1752870637191,-460.0,0.00016509,2]
[373126341,1752870637200,-460.0,0.00016509,2]
[373126342,1752870637210,-1176.27,0.00016509,2]
[373126343,1752870637219,-588.07,0.00016509,2]
[373126345,1752870637229,-460.0,0.00016509,2]
[373126347,1752870637238,-460.0,0.00016509,2]
[373126349,1752870637247,-2010.75,0.00016509,2]
[373126350,1752870637256,-460.0,0.00016509,2]
[373126351,1752870637265,-460.0,0.00016509,2]
[373126352,1752870637275,-460.0,0.00016509,2]
[373126353,1752870637284,-460.0,0.00016509,2]
[373126354,1752870637294,-460.0,0.00016509,2]
[373126355,1752870637303,-460.0,0.00016509,2]
[373126356,1752870637312,-1073.71,0.00016509,2]
[373126357,1752870637321,-460.0,0.00016509,2]
[373126358,1752870637331,-460.0,0.00016509,2]
[373126359,1752870637340,-460.0,0.00016509,2]
[373126360,1752870637349,-825.7,0.00016509,2]
[373126362,1752870637358,-460.0,0.00016509,2]
[373126364,1752870637367,-460.0,0.00016509,2]
[373126366,1752870637377,-465.46,0.00016509,2]
[373126368,1752870637387,-460.0,0.00016509,2]
[373126371,1752870637396,-460.0,0.00016509,2]
[373126372,1752870637405,-460.0,0.00016509,2]
[373126374,1752870637415,-1138.77,0.00016509,2]
[373126377,1752870637424,-460.0,0.00016509,2]
[373126379,1752870637434,-460.0,0.00016509,2]
[373126380,1752870637445,-460.0,0.00016509,2]
[373126382,1752870637454,-460.0,0.00016509,2]
[373126384,1752870637463,-460.0,0.00016509,2]
[373126387,1752870637473,-460.0,0.00016509,2]
[373126388,1752870637483,-8468.02053153,0.00016509,2]
[373126425,1752870637868,-16441.67180674,0.00016509,2]
[373126830,1752870643717,-460.0,0.00016509,2]
[373126832,1752870643727,-19328.29648797,0.00016509,2]
[373126834,1752870643737,-460.0,0.0001651,2]
[373126836,1752870643746,-460.0,0.0001651,2]
[373126838,1752870643756,-460.0,0.0001651,2]
[373126840,1752870643765,-460.0,0.0001651,2]
[373126842,1752870643774,-460.0,0.0001651,2]
[373126844,1752870643784,-206.87878268,0.0001651,2]
[373126846,1752870643795,-460.0,0.0001651,2]
[373126848,1752870643805,-460.0,0.0001651,2]
[373126850,1752870643815,-544.92,0.0001651,2]
[373126852,1752870643825,-460.0,0.0001651,2]
[373126854,1752870643835,-460.0,0.0001651,2]
[373126856,1752870643844,-460.0,0.0001651,2]
[373126858,1752870643853,-460.0,0.0001651,2]
[373126860,1752870643863,-460.0,0.0001651,2]
[373126862,1752870643875,-460.0,0.00016511,2]
[373126864,1752870643884,-460.0,0.00016511,2]
[373126866,1752870643894,-460.0,0.00016511,2]
[373126868,1752870643903,-460.0,0.00016511,2]
[373126870,1752870643913,-456.86,0.00016511,2]
[373126872,1752870643923,-460.0,0.00016511,2]
[373126874,1752870643932,-460.0,0.00016511,2]
[373126876,1752870643941,-460.0,0.00016512,2]
[373126878,1752870643951,-460.0,0.00016512,2]
[373126880,1752870643961,-460.0,0.00016512,2]
[373126882,1752870643970,-460.0,0.00016512,2]
[373126884,1752870643980,-460.0,0.00016512,2]
[373126886,1752870643989,-460.0,0.00016512,2]
[373126888,1752870643998,-460.0,0.00016512,2]
[373126890,1752870644008,-151.3496386,0.00016512,2]
[373126892,1752870644018,-460.0,0.00016512,2]
[373126894,1752870644028,-460.0,0.00016512,2]
[373126896,1752870644037,-460.0,0.00016512,2]
[373126898,1752870644046,-460.0,0.00016512,2]
[373126900,1752870644055,-460.0,0.00016512,2]
[373126902,1752870644064,-460.0,0.00016512,2]
[373126904,1752870644073,-540.05,0.00016512,2]
[373126906,1752870644082,-460.0,0.00016512,2]
[373126908,1752870644092,-460.0,0.00016512,2]
[373126910,1752870644102,-460.0,0.00016512,2]
[373126912,1752870644111,-460.0,0.00016512,2]
[373126914,1752870644121,-460.0,0.00016512,2]
[373126916,1752870644130,-460.0,0.00016512,2]
[373126918,1752870644141,-460.0,0.00016514,2]
[373126920,1752870644152,-460.0,0.00016514,2]
[373126922,1752870644161,-1223.09,0.00016514,2]
[373126923,1752870644171,-488.93,0.00016514,2]
[373126925,1752870644180,-796.77,0.00016515,2]
[373126927,1752870644190,-1054.39,0.00016515,2]
[373126929,1752870644200,-460.0,0.00016515,2]
[373126931,1752870644210,-1439.78,0.00016515,2]
[373126933,1752870644219,-1470.31,0.00016516,2]
[373126936,1752870644230,-694.25,0.00016516,2]
[373126938,1752870644239,-246.28,0.00016772,3]
[373126939,1752870644250,-460.0,0.00016782,2]
[373126941,1752870644260,-460.0,0.00016782,2]
[373126943,1752870644270,-460.0,0.00016782,2]
[373126946,1752870644279,-923.65,0.00016782,2]
[373126947,1752870644289,-460.0,0.00016783,2]
[373126949,1752870644304,-460.0,0.00016783,2]
[373126952,1752870644323,-460.0,0.00016783,2]
[373126954,1752870644335,-460.0,0.00016783,2]
[373126955,1752870644344,-1176.27,0.00016783,2]
[373126957,1752870644354,-460.0,0.00016783,2]
[373126959,1752870644363,-460.0,0.00016783,2]
[373126961,1752870644373,-2010.75,0.00016783,2]
[373126963,1752870644382,-460.0,0.00016783,2]
[373126965,1752870644391,-460.0,0.00016783,2]
[373126967,1752870644402,-460.0,0.00016783,2]
[373126969,1752870644412,-1073.71,0.00016783,2]
[373126972,1752870644422,-460.0,0.00016783,2]
[373126974,1752870644432,-460.0,0.00016783,2]
[373126976,1752870644441,-460.0,0.00016783,2]
[373126978,1752870644451,-825.7,0.00016783,2]
[373126980,1752870644461,-465.46,0.00016783,2]
[373126982,1752870644470,-530.41,0.00016783,2]
[373126984,1752870644479,-460.0,0.00016783,2]
[373126985,1752870644489,-1138.77,0.00016783,2]
[373126987,1752870644499,-460.0,0.00016783,2]
[373126989,1752870644508,-460.0,0.00016783,2]
[373126991,1752870644518,-460.0,0.00016783,2]
[373126993,1752870644527,-460.0,0.00016783,2]
[373126995,1752870644537,-249.66,0.00016784,2]
[373126997,1752870644552,-460.0,0.00016784,2]
[373127000,1752870644565,-544.92,0.00016784,2]
[373127001,1752870644574,-460.0,0.00016784,2]
[373127003,1752870644584,-460.0,0.00016784,2]
[373127005,1752870644593,-460.0,0.00016784,2]
[373127007,1752870644603,-460.0,0.00016785,2]
[373127009,1752870644612,-460.0,0.00016785,2]
[373127011,1752870644621,-460.0,0.00016785,2]
[373127013,1752870644631,-460.0,0.00016785,2]
[373127015,1752870644640,-460.0,0.00016785,2]
[373127017,1752870644651,-460.0,0.00016786,2]
[373127019,1752870644661,-460.0,0.00016786,2]
[373127022,1752870644671,-460.0,0.00016786,2]
[373127023,1752870644680,-540.05,0.00016786,2]
[373127025,1752870644690,-460.0,0.00016786,2]
[373127027,1752870644699,-1223.09,0.00016788,2]
[373127029,1752870644708,-488.93,0.00016788,2]
[373127031,1752870644718,-796.77,0.00016789,2]
[373127033,1752870644727,-1054.39,0.00016789,2]
[373127036,1752870644738,-460.0,0.00016789,2]
[373127038,1752870644747,-1439.78,0.00016789,2]
[373127040,1752870644756,-1470.31,0.0001679,2]
[373127042,1752870644766,-694.25,0.0001679,2]
[373127044,1752870644775,-52772.11473595,0.00017,2]
[373127046,1752870644785,-519.67,0.00017056,2]
[373127048,1752870644798,-923.65,0.00017056,2]
[373127050,1752870644808,-515.49977529,0.00017057,2]